bitfinex-derivatives/quotes_BTCF0:USTF0_20240910
["timestamp","ask_amount","ask_price","bid_price","bid_amount"]
[1725932645138,0.19939978,56827.0,56826.0,0.22150964]
[1725932645334,0.19941272,56827.0,56826.0,0.22150964]
[1725932645548,0.30095047,56827.0,56826.0,0.22150964]
[1725932645742,0.14382861,56827.0,56826.0,0.22150964]
[1725932646246,0.14382861,56827.0,56826.0,0.21950964]
[1725932646445,0.14482861,56827.0,56826.0,0.21950964]
[1725932647046,0.14482861,56827.0,56826.0,0.25134596]
[1725932647548,0.30194868,56827.0,56826.0,0.25134596]
[1725932648347,0.30194868,56827.0,56826.0,0.33931996]
[1725932648543,0.17456244,56831.0,56827.0,0.087973]
[1725932648544,0.15712007,56829.0,56827.0,0.087973]
[1725932648745,0.17456244,56834.0,56828.0,0.4371231]
[1725932648942,0.17456244,56834.0,56833.0,0.18]
[1725932649246,0.17456244,56834.0,56833.0,0.4371231]
[1725932649549,0.17456244,56834.0,56833.0,0.5246861]
[1725932650242,0.17456244,56834.0,56833.0,0.38535966]
[1725932650838,0.17456244,56834.0,56833.0,0.52525447]
[1725932651051,0.17456244,56834.0,56833.0,0.41668898]
[1725932651943,0.17456244,56834.0,56833.0,0.38535966]
[1725932654439,0.17456244,56834.0,56833.0,0.52529827]
[1725932655460,0.17456244,56834.0,56833.0,0.38535966]
[1725932655752,0.0041,56841.0,56840.0,0.087953]
[1725932655951,0.12008851,56843.0,56842.0,0.087949]
[1725932656148,0.12008851,56843.0,56842.0,0.20534566]
[1725932656349,0.12008851,56843.0,56842.0,0.20574566]
[1725932656743,0.16070169,56843.0,56842.0,0.088349]
[1725932656944,0.26184186,56843.0,56842.0,0.088349]
[1725932657640,0.26183285,56843.0,56842.0,0.088349]
[1725932658346,0.34978085,56843.0,56842.0,0.0004]
[1725932658648,0.52456003,56843.0,56842.0,0.0004]
[1725932658850,0.53356003,56843.0,56842.0,0.0004]
[1725932659047,0.54456003,56843.0,56842.0,0.0004]
[1725932659443,0.24969234,56843.0,56842.0,0.088349]
[1725932660042,0.42451305,56843.0,56842.0,0.088349]
[1725932660353,0.24969234,56843.0,56842.0,0.088349]
[1725932660557,0.42451305,56843.0,56842.0,0.0004]
[1725932660752,0.51246105,56843.0,56842.0,0.0004]
[1725932661054,0.33764034,56843.0,56842.0,0.0004]
[1725932663845,0.107948,56843.0,56842.0,0.0004]
[1725932664040,0.107948,56843.0,56842.0,0.17626663]
[1725932664250,0.107948,56843.0,56842.0,0.088349]
[1725932664251,0.02,56843.0,56842.0,0.088349]
[1725932664650,0.02,56843.0,56842.0,0.31083428]
[1725932665061,0.02,56843.0,56842.0,0.20533973]
[1725932666459,0.02,56843.0,56842.0,1.33309973]
[1725932666662,0.02,56843.0,56842.0,0.73309973]
[1725932666958,0.02,56843.0,56842.0,0.82078392]
[1725932667160,0.02,56843.0,56842.0,1.33309973]
[1725932667344,0.02,56843.0,56842.0,1.42077222]
[1725932667547,0.02,56843.0,56842.0,1.33309973]
[1725932668155,0.02,56843.0,56842.0,1.36517188]
[1725932668460,0.02,56843.0,56842.0,1.45281389]
[1725932669455,0.02,56843.0,56842.0,1.24818115]
[1725932669667,0.02,56843.0,56842.0,1.33582316]
[1725932670048,0.02,56843.0,56842.0,1.24818115]
[1725932670358,0.02,56843.0,56842.0,0.64818115]
[1725932670658,0.02,56843.0,56842.0,1.45226586]
[1725932671050,0.02,56843.0,56842.0,1.33582316]
[1725932671257,0.02,56843.0,56842.0,1.42377216]
[1725932671462,0.0041,56850.0,56849.0,0.087939]
[1725932671659,0.1792,56855.0,56849.0,0.087939]
[1725932671660,0.267129,56855.0,56853.0,0.087931]
[1725932671859,0.207929,56855.0,56854.0,0.088331]
[1725932672253,0.207929,56855.0,56854.0,0.087931]
[1725932672655,0.10491209,56856.0,56855.0,0.087929]
[1725932672869,0.087927,56857.0,56856.0,0.087928]
[1725932673053,0.087927,56857.0,56856.0,0.088328]
[1725932673365,0.087927,56857.0,56856.0,0.087928]
[1725932674357,0.101927,56857.0,56856.0,0.088928]
[1725932675160,0.110927,56857.0,56856.0,0.089928]
[1725932676562,0.023,56857.0,56856.0,0.089928]
[1725932676765,0.023,56857.0,56856.0,0.269928]
[1725932676963,0.023,56857.0,56856.0,0.328828]
[1725932677165,0.023,56857.0,56856.0,0.148828]
[1725932677659,0.203,56857.0,56856.0,0.002]
[1725932677862,0.203,56857.0,56855.0,0.0004]
[1725932677863,0.382426,56857.0,56855.0,0.0004]
[1725932678056,0.088328,56856.0,56855.0,0.0004]
[1725932678267,0.145628,56856.0,56855.0,0.0004]
[1725932679076,0.3515565,56856.0,56845.0,0.02296339]
[1725932679260,0.2059285,56855.0,56845.0,0.01886339]
[1725932679566,0.0004,56846.0,56845.0,0.19475339]
[1725932679767,0.14253648,56846.0,56845.0,0.40578889]
[1725932680386,0.2063285,56846.0,56845.0,0.40578889]
[1725932681266,0.25752392,56846.0,56845.0,0.41778889]
[1725932681572,0.14636525,56846.0,56845.0,0.41778889]
[1725932682163,0.14636525,56846.0,56845.0,0.42978889]
[1725932682164,0.14736525,56846.0,56845.0,0.42978889]
[1725932682663,0.14736525,56846.0,56845.0,1.55754889]
[1725932685877,0.0024,56846.0,56845.0,1.55754889]
[1725932686077,0.0041,56855.0,56854.0,0.087931]
[1725932686373,0.11966355,56858.0,56857.0,0.087926]
[1725932686574,0.03173855,56858.0,56857.0,0.088326]
[1725932686880,0.087923,56860.0,56857.0,0.088326]
[1725932687068,0.18156001,56862.0,56857.0,0.088326]
[1725932687069,0.087919,56862.0,56859.0,0.088323]
[1725932687270,0.087919,56862.0,56861.0,0.0004]
[1725932687469,0.087919,56862.0,56859.0,0.088323]
[1725932687776,0.0004,56860.0,56859.0,0.088323]
[1725932689267,0.0004,56860.0,56859.0,0.094323]
[1725932690178,0.088322,56860.0,56859.0,0.0064]
[1725932690383,0.088322,56860.0,56859.0,0.094323]
[1725932691673,0.0004,56860.0,56859.0,0.091323]
[1725932691980,0.0004,56860.0,56859.0,0.094323]
[1725932692675,0.0004,56860.0,56859.0,0.14687382]
[1725932693976,0.21264526,56860.0,56853.0,0.05914504]
[1725932694170,0.21224526,56859.0,56856.0,0.18]
[1725932694372,0.21224526,56858.0,56857.0,0.087926]
[1725932694873,0.28816507,56858.0,56856.0,0.08567346]
[1725932695068,0.28856507,56857.0,56856.0,0.08567346]
[1725932695870,0.28856507,56857.0,56856.0,0.09167346]
[1725932696482,0.28856507,56857.0,56856.0,0.17960146]
[1725932696783,0.21364526,56857.0,56856.0,0.17960146]
[1725932696981,0.21364526,56857.0,56856.0,0.18660146]
[1725932697880,0.21464526,56857.0,56856.0,0.18560146]
[1725932700983,0.090326,56857.0,56856.0,0.1316347]
[1725932701683,0.090326,56857.0,56856.0,0.2195627]
[1725932701879,0.090326,56857.0,56856.0,0.21963374]
[1725932704989,0.0024,56857.0,56856.0,0.21963374]
[1725932705182,0.087921,56861.0,56856.0,0.23696228]
[1725932705383,0.087921,56861.0,56860.0,0.08792]
[1725932705592,0.087921,56861.0,56860.0,0.08832]
[1725932705783,0.087921,56861.0,56860.0,0.17625361]
[1725932705986,0.087921,56861.0,56860.0,0.29594259]
[1725932706190,0.08991396,56864.0,56860.0,0.20805302]
[1725932706389,0.08991396,56864.0,56863.0,0.088317]
[1725932706690,0.087915,56865.0,56864.0,0.087915]
[1725932706889,0.17583,56864.0,56863.0,0.0004]
[1725932707078,0.175836,56862.0,56861.0,0.07034584]
[1725932707381,0.355836,56862.0,56861.0,0.07034584]
[1725932708379,0.175836,56862.0,56861.0,0.07134584]
[1725932709079,0.28457495,56862.0,56846.0,0.146443]
[1725932709389,0.22732742,56853.0,56850.0,0.18]
[1725932709581,0.19665695,56852.0,56851.0,0.087936]
[1725932710892,0.19765695,56852.0,56851.0,0.097936]
[1725932711886,0.19865695,56852.0,56851.0,0.107936]
[1725932713290,0.19865695,56852.0,56851.0,0.195872]
[1725932713589,0.13559608,56852.0,56851.0,0.283808]
[1725932713895,0.13559608,56852.0,56851.0,0.107936]
[1725932714191,0.19865695,56852.0,56851.0,0.107936]
[1725932714396,1.35121008,56852.0,56839.0,0.00868451]
[1725932714594,0.19262938,56840.0,56839.0,0.087954]
[1725932714792,0.13399608,56840.0,56839.0,0.087954]
[1725932716087,0.087945,56845.0,56842.0,0.087949]
[1725932716293,0.087945,56845.0,56844.0,0.0004]
[1725932716595,0.087945,56845.0,56844.0,0.26750742]
[1725932717388,0.087939,56849.0,56844.0,0.26750742]
[1725932717589,0.087939,56849.0,56848.0,0.0004]
[1725932717793,0.087939,56849.0,56848.0,0.12507142]
[1725932718103,0.087939,56849.0,56848.0,0.23064248]
[1725932718991,0.088939,56849.0,56848.0,0.23064248]
[1725932722499,0.088939,56849.0,56848.0,0.23071817]
[1725932724101,0.088939,56849.0,56848.0,0.0004]
[1725932726302,0.088939,56849.0,56848.0,0.05315538]
[1725932726500,0.088939,56849.0,56848.0,0.0004]
[1725932727003,0.088939,56849.0,56848.0,0.05315538]
[1725932727604,0.087939,56849.0,56848.0,0.05315538]
[1725932727802,0.088939,56849.0,56848.0,0.05315538]
[1725932728508,0.088939,56849.0,56848.0,0.05415538]
[1725932728704,0.088939,56849.0,56848.0,0.15972077]
[1725932729018,0.175879,56849.0,56848.0,0.07178077]
[1725932729196,1.30772,56849.0,56842.0,0.07038077]
[1725932729391,0.087951,56841.0,56839.0,0.07038077]
[1725932729598,0.087951,56841.0,56837.0,0.07038077]
[1725932729599,0.1756,56840.0,56837.0,0.07038077]
[1725932729803,0.268356,56838.0,56837.0,0.07038077]
[1725932730203,0.175914,56837.0,56836.0,0.05269665]
[1725932730412,0.087963,56833.0,56830.0,0.05269665]
[1725932730606,0.087963,56833.0,56829.0,0.05270159]
[1725932730607,0.087968,56830.0,56829.0,0.05270159]
[1725932730909,0.268368,56830.0,56828.0,0.05270159]
[1725932731111,0.30630595,56829.0,56827.0,0.087972]
[1725932731409,0.07745942,56828.0,56827.0,0.087973]
[1725932731802,0.07705942,56828.0,56827.0,0.087973]
[1725932733208,0.14026353,56828.0,56827.0,0.087973]
[1725932733403,0.21732295,56828.0,56827.0,0.087973]
[1725932733603,0.21832295,56828.0,56827.0,0.087973]
[1725932734199,0.07905942,56828.0,56827.0,0.087973]
[1725932734416,0.21832295,56828.0,56827.0,0.087973]
[1725932735308,0.07905942,56828.0,56827.0,0.087973]
[1725932735523,0.30395174,56828.0,56819.0,0.087985]
[1725932735714,0.18,56820.0,56819.0,0.087985]
[1725932735902,0.34545151,56820.0,56817.0,0.0613]
[1725932736107,0.12220874,56818.0,56817.0,0.0613]
[1725932736305,0.03438385,56818.0,56817.0,0.0613]
[1725932736506,0.15619259,56818.0,56817.0,0.0613]
[1725932737014,0.15619259,56818.0,56817.0,0.149288]
[1725932737211,0.03438385,56818.0,56817.0,0.149288]
[1725932737414,0.03538385,56818.0,56817.0,0.149288]
[1725932737917,0.03638385,56818.0,56817.0,0.149288]
[1725932739020,0.0024,56818.0,56817.0,0.42303303]
[1725932739217,0.087978,56824.0,56820.0,0.087983]
[1725932739419,0.087978,56824.0,56823.0,0.08797851]
[1725932739616,0.087978,56824.0,56823.0,0.21271571]
[1725932739812,0.087978,56824.0,56823.0,0.12516229]
[1725932740212,1.215938,56824.0,56823.0,0.0004]
[1725932740431,1.303916,56824.0,56823.0,0.0004]
[1725932740621,1.305916,56824.0,56823.0,0.0004]
[1725932741319,1.304916,56824.0,56823.0,0.0004]
[1725932741520,1.217938,56824.0,56823.0,0.0004]
[1725932742410,1.217937,56824.0,56823.0,0.0004]
[1725932743316,1.305914,56824.0,56823.0,0.0004]
[1725932743517,1.217937,56824.0,56823.0,0.0004]
[1725932743720,0.797937,56824.0,56823.0,0.0004]
[1725932743916,0.269977,56824.0,56823.0,0.0004]
[1725932745311,0.002,56824.0,56823.0,0.15843526]
[1725932745818,0.002,56824.0,56823.0,0.088379]
[1725932751723,0.002,56824.0,56823.0,1.216339]
[1725932751922,0.0041,56830.0,56829.0,0.08797]
[1725932752122,0.08796,56835.0,56832.0,0.087965]
[1725932752527,0.08796,56835.0,56834.0,0.0004]
[1725932752716,0.08796,56835.0,56832.0,0.087965]
[1725932753019,0.0004,56833.0,56832.0,0.087965]
[1725932753217,0.0004,56833.0,56832.0,0.088965]
[1725932754016,0.0004,56833.0,56832.0,0.089965]
[1725932754222,0.087946,56844.0,56841.0,0.087951]
[1725932754417,0.087946,56844.0,56843.0,0.0004]
[1725932754918,0.087942,56847.0,56844.0,0.087946]
[1725932755123,0.0041,56857.0,56843.0,0.0004]
[1725932755124,0.267924,56859.0,56850.0,0.087937]
[1725932755319,0.267924,56859.0,56851.0,0.05257702]
[1725932755320,0.18,56855.0,56851.0,0.05257702]
[1725932755515,0.18,56855.0,56853.0,0.05257702]
[1725932756026,0.30015391,56859.0,56854.0,0.05256223]
[1725932756233,0.3023,56863.0,56858.0,0.0004]
[1725932756421,0.3023,56863.0,56862.0,0.0004]
[1725932756622,0.3023,56863.0,56859.0,0.05256223]
[1725932756821,0.3023,56863.0,56860.0,0.05256223]
[1725932757019,0.3023,56863.0,56859.0,0.05256223]
[1725932757224,0.1804,56860.0,56858.0,0.05296223]
[1725932757735,0.087923,56859.0,56858.0,0.0004]
[1725932758625,1.303486,56859.0,56858.0,0.0004]
[1725932758927,0.703486,56859.0,56858.0,0.0004]
[1725932759231,1.303486,56859.0,56858.0,0.0004]
[1725932759432,0.087923,56859.0,56858.0,0.0004]
[1725932760024,0.089923,56859.0,56858.0,0.0004]
[1725932760230,0.092923,56859.0,56858.0,0.0004]
[1725932760627,1.308486,56859.0,56858.0,0.0004]
[1725932761224,1.308486,56859.0,56846.0,0.08801266]
[1725932761225,0.087942,56847.0,56846.0,0.0004]
[1725932761425,0.0004,56847.0,56846.0,0.0004]
[1725932761628,0.0004,56847.0,56846.0,0.088343]
[1725932761828,0.0004,56847.0,56846.0,0.150543]
[1725932762019,0.0004,56847.0,56846.0,0.678263]
[1725932762425,0.0004,56847.0,56846.0,0.677863]
[1725932762733,0.0014,56847.0,56846.0,0.685863]
[1725932762925,0.0024,56847.0,56846.0,0.160143]
[1725932763228,0.0024,56847.0,56846.0,0.01]
[1725932763229,0.1824,56847.0,56846.0,0.01]
[1725932763430,0.269342,56847.0,56846.0,0.008]
[1725932763627,0.270342,56847.0,56846.0,0.01]
[1725932763829,0.0024,56847.0,56846.0,0.01]
[1725932764728,0.1824,56847.0,56846.0,0.01]
[1725932765525,0.269342,56847.0,56846.0,0.002]
[1725932765740,0.270342,56847.0,56846.0,0.009]
[1725932766028,0.358284,56847.0,56846.0,0.009]
[1725932766433,0.1824,56847.0,56846.0,0.007]
[1725932766631,0.357284,56847.0,56846.0,0.007]
[1725932766834,0.358284,56847.0,56846.0,0.009]
[1725932767036,0.358284,56847.0,56831.0,0.152865]
[1725932767037,0.087961,56835.0,56831.0,0.152865]
[1725932767334,0.0004,56832.0,56829.0,0.0648]
[1725932767533,0.0004,56830.0,56829.0,0.21477]
[1725932769134,0.10473413,56830.0,56829.0,0.21477]
[1725932769329,0.0004,56830.0,56829.0,0.21477]
[1725932770034,0.0014,56830.0,56829.0,0.21577]
[1725932770446,0.0024,56830.0,56829.0,0.21577]
[1725932772637,0.03637522,56830.0,56829.0,0.21577]
[1725932773032,0.0024,56830.0,56829.0,0.21577]
[1725932773830,0.03637459,56830.0,56829.0,0.21577]
[1725932776041,0.03437459,56830.0,56829.0,0.21577]
[1725932776248,0.03755419,56837.0,56834.0,0.087961]
[1725932776436,0.03755419,56837.0,56836.0,0.0004]
[1725932776739,0.03755419,56837.0,56836.0,0.12472992]
[1725932777438,0.03855419,56837.0,56836.0,0.22986066]
[1725932777646,0.03855419,56837.0,56836.0,0.12472992]
[1725932777843,0.03955419,56837.0,56836.0,0.12472992]
[1725932778147,0.03955419,56837.0,56836.0,0.21264336]
[1725932779140,0.03855419,56837.0,56836.0,0.21264336]
[1725932779341,0.03955419,56837.0,56836.0,0.21464336]
[1725932781248,0.03955419,56837.0,56836.0,0.3197741]
[1725932782046,0.12751319,56837.0,56836.0,0.21436671]
[1725932782346,0.087959,56836.0,56834.0,0.08768235]
[1725932782548,1.16739419,56837.0,56833.0,0.08768235]
[1725932782549,0.087962,56834.0,56833.0,0.08768235]
[1725932782743,0.0004,56834.0,56828.0,0.19310174]
[1725932782946,0.087965,56832.0,56831.0,0.08769324]
[1725932783139,0.087965,56832.0,56831.0,0.1247848]
[1725932784243,0.0014,56834.0,56828.0,0.087971]
[1725932784444,0.0004,56829.0,56828.0,0.087971]
[1725932785647,0.087978,56825.0,56824.0,0.087977]
[1725932785851,0.087978,56825.0,56818.0,0.089026]
[1725932785852,0.0004,56825.0,56818.0,0.089026]
[1725932786051,0.1804,56819.0,56818.0,0.087986]
[1725932786349,0.087988,56817.0,56815.0,0.087991]
[1725932786747,0.0004,56816.0,56815.0,0.087991]
[1725932788244,0.0014,56816.0,56815.0,0.087991]
[1725932788446,0.087992,56815.0,56811.0,0.151696]
[1725932788653,0.18,56814.0,56812.0,0.087995]
[1725932789146,0.001,56816.0,56811.0,0.0637]
[1725932789456,0.0004,56812.0,56811.0,0.151697]
[1725932791248,0.0004,56812.0,56811.0,0.27647408]
[1725932791249,0.0024,56812.0,56811.0,0.27647408]
[1725932791756,0.087989,56817.0,56811.0,0.33714225]
[1725932791957,0.087989,56817.0,56816.0,0.0004]
[1725932792154,0.087989,56817.0,56816.0,0.12517708]
[1725932792761,0.087989,56817.0,56816.0,0.12515313]
[1725932793364,0.088989,56817.0,56816.0,0.21274227]
[1725932793561,0.089989,56817.0,56816.0,0.21274227]
[1725932793762,0.089989,56817.0,56816.0,0.12515313]
[1725932793958,0.089989,56817.0,56816.0,0.21274227]
[1725932794356,0.154989,56817.0,56816.0,0.21274227]
[1725932794565,0.154989,56817.0,56816.0,0.21276275]
[1725932795572,0.089989,56817.0,56816.0,0.21276275]
[1725932796863,0.089989,56817.0,56816.0,0.0004]
[1725932798969,0.177978,56817.0,56816.0,0.0004]
[1725932799171,1.41244414,56817.0,56816.0,0.0004]
[1725932800267,1.41144414,56817.0,56816.0,0.0004]
[1725932800471,1.41244414,56817.0,56816.0,0.0014]
[1725932800671,1.41244414,56817.0,56810.0,0.0072]
[1725932800672,0.175994,56811.0,56810.0,0.0072]
[1725932800882,0.356394,56811.0,56810.0,0.0072]
[1725932802971,0.357394,56811.0,56810.0,0.0072]
[1725932803776,1.547074,56811.0,56810.0,0.0072]
[1725932803979,1.65152018,56811.0,56810.0,0.0072]
[1725932804681,1.547074,56811.0,56810.0,0.0072]
[1725932805171,0.947074,56811.0,56810.0,0.0072]
[1725932805372,0.4510421,56811.0,56810.0,0.0072]
[1725932805874,0.4500421,56811.0,56810.0,0.0072]
[1725932806674,1.6661191,56811.0,56810.0,0.0072]
[1725932808678,1.0661191,56811.0,56810.0,0.0072]
[1725932808875,1.6661191,56811.0,56810.0,0.0072]
[1725932809079,1.0661191,56811.0,56810.0,0.0072]
[1725932809269,1.0661191,56811.0,56810.0,0.05977517]
[1725932809465,1.6661191,56811.0,56810.0,0.05977293]
[1725932810066,0.5380391,56811.0,56810.0,0.05977293]
[1725932810266,0.5380391,56811.0,56810.0,0.0072]
[1725932811776,0.3884421,56811.0,56810.0,0.0072]
[1725932811975,0.3884421,56811.0,56810.0,0.07730022]
[1725932812175,0.3884421,56811.0,56810.0,0.0072]
[1725932813081,0.3004451,56811.0,56810.0,0.0072]
[1725932813589,0.3884421,56811.0,56810.0,0.0072]
[1725932813882,0.3004451,56811.0,56810.0,0.0072]
[1725932815772,0.1204451,56811.0,56810.0,0.09480962]
[1725932815976,0.0004,56811.0,56810.0,0.22051231]
[1725932816179,0.18,56814.0,56812.0,0.087995]
[1725932816484,0.267993,56814.0,56813.0,0.0004]
[1725932820271,0.355986,56814.0,56813.0,0.0004]
[1725932820477,0.356986,56814.0,56813.0,0.0004]
[1725932820673,0.356986,56814.0,56813.0,0.07062136]
[1725932821283,0.43407764,56814.0,56813.0,0.0004]
[1725932821586,0.66033417,56814.0,56813.0,0.0004]
[1725932821770,0.52107064,56814.0,56813.0,0.0004]
[1725932823583,0.087997,56811.0,56803.0,0.0041]
[1725932823883,0.087997,56811.0,56799.0,0.0041]
[1725932823884,0.088014,56800.0,56799.0,0.0041]
[1725932824184,0.088016,56799.0,56798.0,0.0654]
[1725932824385,0.19315426,56799.0,56798.0,0.0654]
[1725932824583,0.088416,56799.0,56798.0,0.153418]
[1725932824786,0.088416,56799.0,56798.0,0.681618]
[1725932824787,0.0004,56799.0,56798.0,0.681618]
[1725932825185,0.0004,56799.0,56798.0,1.281618]
[1725932826788,0.0014,56799.0,56798.0,1.281618]
[1725932826983,0.0024,56799.0,56798.0,1.281618]
[1725932827595,0.0024,56799.0,56798.0,0.153418]
[1725932828593,0.0024,56799.0,56798.0,0.0654]
[1725932828791,0.088021,56796.0,56795.0,0.220522]
[1725932828987,0.37320108,56796.0,56795.0,0.220522]
[1725932829187,0.28517958,56796.0,56795.0,0.220522]
[1725932829389,0.1804,56796.0,56795.0,0.66500053]
[1725932829893,0.1814,56796.0,56795.0,0.66500053]
[1725932830093,0.1824,56796.0,56795.0,0.66500053]
[1725932830494,0.0024,56796.0,56795.0,0.66500053]
[1725932830690,0.0024,56796.0,56795.0,0.78812398]
[1725932831099,0.0024,56796.0,56795.0,0.66500053]
[1725932831788,0.088012,56802.0,56799.0,0.088015]
[1725932831996,0.088012,56802.0,56795.0,1.70517853]
[1725932831997,0.088012,56802.0,56801.0,0.0004]
[1725932832196,0.088012,56802.0,56801.0,0.27193514]
[1725932832995,0.089012,56802.0,56801.0,0.27193514]
[1725932833196,0.089012,56802.0,56801.0,0.27273514]
[1725932833497,0.090012,56802.0,56801.0,0.27273514]
[1725932835389,0.090012,56802.0,56801.0,0.0032]
[1725932835599,0.090012,56802.0,56801.0,0.27502861]
[1725932838199,0.090012,56802.0,56801.0,0.27505557]
[1725932839300,0.090012,56802.0,56801.0,0.12722387]
[1725932839803,0.178024,56802.0,56801.0,0.27504849]
[1725932839996,0.178024,56802.0,56801.0,0.23275556]
[1725932840714,0.178024,56802.0,56801.0,0.23278456]
[1725932841003,0.178024,56802.0,56801.0,0.12725287]
[1725932842305,0.178024,56802.0,56801.0,0.21518534]
[1725932843609,0.178024,56802.0,56801.0,0.09113247]
[1725932844106,0.13398695,56802.0,56801.0,0.09113247]
[1725932844308,0.13398695,56802.0,56801.0,0.12655041]
[1725932845808,0.13398695,56802.0,56801.0,0.2320821]
[1725932849816,0.16035111,56802.0,56801.0,0.27343116]
[1725932850201,0.16035111,56802.0,56801.0,0.12655041]
[1725932850512,0.16035111,56802.0,56801.0,0.27197878]
[1725932850815,0.16035111,56802.0,56801.0,0.1258202]
[1725932851112,0.16035111,56802.0,56801.0,0.23134425]
[1725932851306,0.16035111,56802.0,56801.0,0.1258202]
[1725932852116,0.27035111,56802.0,56801.0,0.1258202]
[1725932856506,0.18233911,56802.0,56801.0,0.23134425]
[1725932856902,0.07233911,56802.0,56801.0,0.1258202]
[1725932857205,0.096193,56814.0,56801.0,1.40032108]
[1725932857409,0.0047,56817.0,56802.0,0.40706108]
[1725932857410,0.08801,56803.0,56802.0,0.40706108]
[1725932857803,0.08801,56803.0,56802.0,0.49507208]
[1725932858008,0.17602,56803.0,56802.0,0.26896108]
[1725932858208,0.17602,56803.0,56802.0,0.22816947]
[1725932858818,0.28702,56803.0,56802.0,0.23016947]
[1725932859026,0.31874313,56803.0,56802.0,0.23016947]
[1725932859614,0.31874313,56803.0,56802.0,0.002]
[1725932860410,0.002,56803.0,56802.0,0.092011]
[1725932860609,0.112,56803.0,56802.0,0.092011]
[1725932860813,0.20001,56803.0,56802.0,0.004]
[1725932861420,0.28802,56803.0,56802.0,0.004]
[1725932861620,0.39279958,56803.0,56802.0,0.004]
[1725932862622,1.52095958,56803.0,56802.0,0.004]
[1725932863125,1.41618,56803.0,56802.0,0.004]
[1725932863717,0.52816,56802.0,56792.0,0.0041]
[1725932863918,0.088032,56789.0,56788.0,0.0041]
[1725932864117,0.088036,56786.0,56785.0,0.3228]
[1725932864317,0.088036,56786.0,56776.0,0.00184]
[1725932864318,0.08805,56777.0,56776.0,0.00184]
[1725932864626,0.23284931,56786.0,56766.0,0.0047]
[1725932864627,0.088046,56780.0,56766.0,0.0041]
[1725932864812,0.12219253,56784.0,56764.0,0.08807]
[1725932864813,0.1108,56767.0,56764.0,0.08807]
[1725932865008,0.0008,56765.0,56764.0,0.08807]
[1725932865212,0.1108,56767.0,56759.0,0.157278]
[1725932865422,0.11,56762.0,56760.0,0.088076]
[1725932865817,0.11,56762.0,56761.0,0.088075]
[1725932866121,0.0008,56767.0,56766.0,0.002]
[1725932866321,0.1808,56767.0,56766.0,0.002]
[1725932867212,0.0008,56767.0,56766.0,0.002]
[1725932867614,0.0008,56767.0,56765.0,0.15818645]
[1725932867913,0.0008,56766.0,56765.0,0.15818645]
[1725932868414,0.0008,56766.0,56764.0,0.07011745]
[1725932868610,0.0008,56766.0,56759.0,0.0692]
[1725932868611,0.0008,56765.0,56763.0,0.07011745]
[1725932869121,0.0008,56765.0,56763.0,0.15818945]
[1725932869524,0.0008,56765.0,56764.0,0.08807]
[1725932870120,0.0008,56765.0,56762.0,0.07011745]
[1725932870318,0.0008,56765.0,56764.0,0.26807]
[1725932870517,0.0008,56765.0,56764.0,0.86807]
[1725932870717,0.18,56779.0,56771.0,0.088059]
[1725932870926,0.088047,56779.0,56771.0,0.18]
[1725932871117,0.088049,56778.0,56773.0,0.088056]
[1725932872233,0.001,56779.0,56773.0,0.088056]
[1725932872740,0.088054,56775.0,56773.0,0.088056]
[1725932873130,0.088054,56775.0,56772.0,0.1335]
[1725932873334,0.0008,56773.0,56772.0,0.1335]
[1725932874630,0.0018,56773.0,56772.0,0.1355]
[1725932875040,0.0028,56773.0,56772.0,0.225558]
[1725932877042,0.0018,56773.0,56772.0,0.223558]
[1725932877243,0.0018,56773.0,56772.0,0.224558]
[1725932877244,0.0028,56773.0,56772.0,0.224558]
[1725932877444,0.0018,56773.0,56772.0,0.222558]
[1725932877738,0.0028,56773.0,56772.0,0.223558]
[1725932878129,0.088044,56781.0,56772.0,1.26294]
[1725932878335,0.088044,56781.0,56780.0,0.18]
[1725932878535,0.088039,56785.0,56781.0,0.088044]
[1725932879039,0.08804,56784.0,56781.0,0.088044]
[1725932879337,0.088033,56789.0,56783.0,0.18]
[1725932879642,0.088033,56789.0,56787.0,0.18]
[1725932880441,0.091033,56789.0,56784.0,0.2068]
[1725932880634,0.088838,56785.0,56784.0,0.2068]
[1725932880834,0.088838,56785.0,56784.0,0.294839]
[1725932881541,0.088838,56785.0,56784.0,0.1389]
[1725932881729,0.088838,56785.0,56780.0,0.14052579]
[1725932881730,0.088043,56782.0,56780.0,0.088044]
[1725932881931,0.0008,56781.0,56780.0,0.088044]
[1725932882134,0.088844,56781.0,56780.0,0.088044]
[1725932882339,0.088047,56779.0,56778.0,0.05248179]
[1725932882541,0.0008,56779.0,56778.0,0.14053079]
[1725932882942,0.0008,56779.0,56778.0,0.088049]
[1725932883439,0.08805,56778.0,56776.0,0.05248179]
[1725932883645,0.0008,56777.0,56776.0,0.088052]
[1725932884237,0.0008,56777.0,56776.0,0.14053379]
[1725932884742,0.03195747,56785.0,56778.0,0.088047]
[1725932884943,0.088044,56782.0,56779.0,0.088047]
[1725932885243,0.088045,56781.0,56779.0,0.088047]
[1725932886243,0.088045,56781.0,56779.0,0.090047]
[1725932886442,0.088045,56781.0,56780.0,0.088045]
[1725932888051,0.088045,56781.0,56780.0,0.089045]
[1725932888548,0.088045,56781.0,56780.0,0.002]
[1725932888845,0.088045,56781.0,56780.0,0.090045]
[1725932891246,0.088038,56786.0,56785.0,0.088037]
[1725932891449,0.088038,56786.0,56785.0,0.088437]
[1725932891957,0.088038,56786.0,56785.0,0.0004]
[1725932892838,0.093038,56786.0,56785.0,0.0004]
[1725932893043,0.098038,56786.0,56785.0,0.0004]
[1725932894438,0.098038,56786.0,56785.0,0.088438]
[1725932894840,0.098038,56786.0,56785.0,0.0004]
[1725932895266,0.4705535,56786.0,56785.0,0.0004]
[1725932895547,0.5369535,56786.0,56785.0,0.0004]
[1725932895746,0.5369535,56786.0,56775.0,0.0041]
[1725932895747,0.088052,56776.0,56775.0,0.0041]
[1725932895951,0.088052,56776.0,56771.0,0.3218]